fUST/lending_fUST_20260110
["ID","MTS","AMOUNT","RATE_DAILY","PERIOD"]
[401147743,1767977439247,-500.0,0.00012228,2]
[401147744,1767977439257,-500.0,0.00012228,2]
[401147745,1767977439267,-500.0,0.00012228,2]
[401147746,1767977439277,-500.0,0.00012228,2]
[401147747,1767977439287,-500.0,0.00012228,2]
[401147748,1767977439297,-500.0,0.00012228,2]
[401147749,1767977439307,-500.0,0.00012228,2]
[401147750,1767977439316,-500.0,0.00012228,2]
[401147751,1767977439326,-500.0,0.00012228,2]
[401147752,1767977439336,-500.0,0.00012228,2]
[401147753,1767977439345,-500.0,0.00012228,2]
[401147754,1767977439355,-500.0,0.00012228,2]
[401147755,1767977439364,-500.0,0.00012228,2]
[401147756,1767977439374,-500.0,0.00012228,2]
[401147757,1767977439383,-500.0,0.00012228,2]
[401147758,1767977439393,-500.0,0.00012228,2]
[401147759,1767977439403,-500.0,0.00012228,2]
[401147760,1767977439412,-236.99081694,0.00012228,2]
[401147761,1767977439421,-500.0,0.00012228,2]
[401147762,1767977439431,-500.0,0.00012228,2]
[401147763,1767977439441,-159133.26793609,0.00012229,2]
[401147764,1767977439450,-1271.66,0.00012329,2]
[401147765,1767977439460,-1059.72,0.00012329,2]
[401147766,1767977439470,-883.1,0.00012329,2]
[401147767,1767977439479,-735.91,0.00012329,2]
[401147768,1767977439488,-613.26,0.00012329,2]
[401147769,1767977439497,-511.05,0.00012329,2]
[401147770,1767977439506,-425.88,0.00012329,2]
[401147771,1767977439515,-354.9,0.00012329,2]
[401147772,1767977439524,-36020.84789368,0.00012329,2]
[401147773,1767977439534,-295.75,0.00012329,2]
[401147774,1767977439543,-246.46,0.00012329,2]
[401147775,1767977439551,-205.38,0.00012329,2]
[401147776,1767977439560,-171.15,0.00012329,2]
[401147777,1767977439569,-855.77,0.00012329,2]
[401147778,1767977439578,-205.41447394,0.00012329,2]
[401147779,1767977439588,-500.0,0.00012329,2]
[401147780,1767977439598,-197.44274706,0.00012329,2]
[401147781,1767977439608,-300.0,0.0001304,2]
[401147782,1767977439618,-300.0,0.0001304,2]
[401147783,1767977439628,-300.0,0.0001304,2]
[401147784,1767977439637,-300.0,0.0001304,2]
[401147785,1767977439647,-300.0,0.0001304,2]
[401147786,1767977439655,-300.0,0.0001304,2]
[401147787,1767977439665,-300.0,0.0001304,2]
[401147788,1767977439675,-300.0,0.0001304,2]
[401147789,1767977439684,-300.0,0.0001304,2]
[401147790,1767977439693,-300.0,0.0001304,2]
[401147791,1767977439706,-300.0,0.0001304,2]
[401147792,1767977439716,-300.0,0.0001304,2]
[401147793,1767977439726,-300.0,0.0001304,2]
[401147794,1767977439735,-300.0,0.0001304,2]
[401147795,1767977439745,-300.0,0.0001304,2]
[401147796,1767977439754,-600.0,0.0001304,2]
[401147797,1767977439766,-500.0,0.00013273,2]
[401147798,1767977439776,-346.62658047,0.00013273,2]
[401147799,1767977439785,-450.76888394,0.00013273,2]
[401147800,1767977439795,-500.0,0.00013273,2]
[401147801,1767977439806,-500.0,0.00013273,2]
[401147802,1767977439816,-500.0,0.00013273,2]
[401147803,1767977439825,-500.0,0.00013273,2]
[401147804,1767977439836,-500.0,0.00013273,2]
[401147805,1767977439845,-500.0,0.00013273,2]
[401147806,1767977439855,-500.0,0.00013273,2]
[401147807,1767977439866,-500.0,0.00013273,2]
[401147808,1767977439876,-527.5449853,0.00013273,2]
[401147809,1767977439886,-500.0,0.00013273,2]
[401147810,1767977439895,-500.0,0.00013273,2]
[401147811,1767977439904,-500.0,0.00013273,2]
[401147812,1767977439913,-500.0,0.00013273,2]
[401147813,1767977439923,-500.0,0.00013273,2]
[401147814,1767977439932,-500.0,0.00013273,2]
[401147815,1767977439941,-499.96763801,0.00013273,2]
[401147816,1767977439951,-500.0,0.00013273,2]
[401147817,1767977439961,-500.0,0.00013273,2]
[401147818,1767977439970,-500.0,0.00013273,2]
[401147819,1767977439980,-500.0,0.00013273,2]
[401147820,1767977439990,-500.0,0.00013273,2]
[401147821,1767977439999,-500.0,0.00013273,2]
[401147822,1767977440009,-500.0,0.00013273,2]
[401147823,1767977440018,-500.0,0.00013273,2]
[401147824,1767977440027,-387.20400497,0.00013298,2]
[401147825,1767977440037,-420.0,0.0001342,2]
[401147826,1767977440046,-420.0,0.0001342,2]
[401147827,1767977440055,-300.0,0.00013673,2]
[401147828,1767977440064,-243.65998595,0.00013673,2]
[401147829,1767977440073,-500.0,0.00013698,2]
[401147830,1767977440082,-500.0,0.00013698,2]
[401147831,1767977440092,-500.0,0.00013698,2]
[401147832,1767977440101,-500.0,0.00013698,2]
[401147833,1767977440110,-500.0,0.00013698,2]
[401147834,1767977440120,-500.0,0.00013698,2]
[401147835,1767977440131,-500.0,0.00013698,2]
[401147836,1767977440140,-500.0,0.00013698,2]
[401147837,1767977440149,-500.0,0.00013698,2]
[401147838,1767977440159,-500.0,0.00013698,2]
[401147839,1767977440170,-500.0,0.00013698,2]
[401147840,1767977440179,-500.0,0.00013698,2]
[401147841,1767977440189,-500.0,0.00013698,2]
[401147842,1767977440199,-500.0,0.00013698,2]
[401147843,1767977440208,-501.25,0.00013698,2]
[401147844,1767977440218,-500.0,0.00013698,2]
[401147845,1767977440228,-500.0,0.00013698,2]
[401147846,1767977440236,-500.0,0.00013698,2]
[401147847,1767977440245,-500.0,0.00013698,2]
[401147848,1767977440254,-500.0,0.00013698,2]
[401147849,1767977440264,-500.0,0.00013698,2]
[401147850,1767977440273,-500.0,0.00013698,2]
[401147851,1767977440283,-500.0,0.00013698,2]
[401147852,1767977440293,-500.0,0.00013698,2]
[401147853,1767977440303,-500.0,0.00013698,2]
[401147854,1767977440313,-500.0,0.00013698,2]
[401147855,1767977440323,-500.0,0.00013698,2]
[401147856,1767977440331,-500.0,0.00013698,2]
[401147857,1767977440341,-500.0,0.00013698,2]
[401147858,1767977440350,-525.75694579,0.00013698,2]
[401147859,1767977440360,-500.0,0.00013698,2]
[401147860,1767977440369,-591.56,0.00013698,2]
[401147861,1767977440379,-500.0,0.00013698,2]
[401147862,1767977440392,-1836.608964,0.00013699,2]
[401147863,1767977440402,-556.5,0.00013699,2]
[401147864,1767977440412,-500.0,0.00013699,2]
[401147865,1767977440422,-500.0,0.00013699,2]
[401147867,1767977440432,-158.45531345,0.00013699,2]
[401147869,1767977440441,-500.0,0.00013699,2]
[401147871,1767977440451,-500.0,0.00013699,2]
[401147873,1767977440460,-500.0,0.00013699,2]
[401147875,1767977440469,-500.0,0.00013699,2]
[401147877,1767977440478,-500.0,0.00013699,2]
[401147879,1767977440487,-500.0,0.00013699,2]
[401147881,1767977440497,-369.78061474,0.00013699,2]
[401147883,1767977440506,-500.0,0.00013699,2]
[401147885,1767977440516,-500.0,0.00013699,2]
[401147887,1767977440525,-613.49245039,0.00013821,2]
[401147889,1767977440534,-1000.0,0.00013821,2]
[401147891,1767977440543,-565.28238456,0.00013821,2]
[401147893,1767977440553,-1000.0,0.00013821,2]
[401147895,1767977440562,-1000.0,0.00013821,2]
[401147897,1767977440572,-1000.0,0.00013821,2]
[401147899,1767977440581,-1000.0,0.00013821,2]
[401147901,1767977440590,-500.0,0.00013821,2]
[401147903,1767977440600,-1000.0,0.00013821,2]
[401147905,1767977440609,-236.76731322,0.00013821,2]
[401147907,1767977440619,-1000.0,0.00013821,2]
[401147909,1767977440629,-1000.0,0.00013821,2]
[401147911,1767977440638,-1000.0,0.00013821,2]
[401147913,1767977440648,-1000.0,0.00013821,2]
[401147916,1767977440658,-600.0,0.00014221,2]
[401147918,1767977440667,-170.45939986,0.00014247,2]
[401147920,1767977440679,-500.0,0.00014247,2]
[401147922,1767977440687,-1000.0,0.00014247,2]
[401147924,1767977440697,-150.30892656,0.00014247,2]
[401147926,1767977440707,-1000.0,0.00014247,2]
[401147928,1767977440715,-1000.0,0.00014247,2]
[401147930,1767977440724,-1000.0,0.00014247,2]
[401147932,1767977440734,-1000.0,0.00014247,2]
[401147934,1767977440743,-447.49421984,0.00014247,2]
[401147936,1767977440753,-1000.0,0.00014247,2]
[401147938,1767977440764,-720.0,0.00014344,2]
[401147940,1767977440775,-688.97020484,0.00014367,2]
[401147942,1767977440784,-509.85328175,0.00014367,2]
[401147944,1767977440793,-688.97020484,0.00014367,2]
[401147946,1767977440802,-688.97020484,0.00014367,2]
[401147948,1767977440813,-688.97020484,0.00014367,2]
[401147950,1767977440823,-688.97020484,0.00014367,2]
[401147952,1767977440832,-688.97020484,0.00014367,2]
[401147954,1767977440843,-688.97020484,0.00014367,2]
[401147956,1767977440852,-688.97020484,0.00014367,2]
[401147958,1767977440861,-688.97020484,0.00014367,2]
[401147960,1767977440870,-688.97020484,0.00014367,2]
[401147962,1767977440880,-688.97020484,0.00014367,2]
[401147964,1767977440890,-688.97020484,0.00014367,2]
[401147966,1767977440899,-688.97020484,0.00014367,2]
[401147968,1767977440909,-500.0,0.00014368,2]
[401147970,1767977440918,-758.22378813,0.00014368,2]
[401147972,1767977440927,-1500.0,0.00014368,2]
[401147974,1767977440936,-1500.0,0.00014368,2]
[401147976,1767977440945,-1500.0,0.00014368,2]
[401147978,1767977440954,-1500.0,0.00014368,2]
[401147980,1767977440963,-1506.91111939,0.00014368,2]
[401147982,1767977440973,-1500.0,0.00014368,2]
[401147984,1767977440982,-1500.0,0.00014368,2]
[401147986,1767977440992,-1500.0,0.00014368,2]
[401147988,1767977441001,-5000.0,0.0001451,2]
[401147990,1767977441010,-300.0,0.00014729,2]
[401147992,1767977441019,-587.0,0.00014729,2]
[401147994,1767977441029,-900.0,0.00014768,2]
[401147996,1767977441038,-1489.76585726,0.00014795,2]
[401147998,1767977441048,-1500.0,0.00014795,2]
[401148000,1767977441058,-1500.0,0.00014795,2]
[401148002,1767977441069,-1500.0,0.00014795,2]
[401148004,1767977441079,-100000.0,0.00014882,2]
[401148006,1767977441088,-2000.0,0.00014916,2]
[401148008,1767977441098,-2000.0,0.00014916,2]
[401148010,1767977441107,-491.15638518,0.00014916,2]
[401148012,1767977441116,-502.20988126,0.00014916,2]
[401148014,1767977441125,-2000.0,0.00014916,2]
[401148016,1767977441134,-2000.0,0.00014916,2]
[401148018,1767977441144,-360.217755,0.00015068,2]
[401148020,1767977441153,-800.0,0.00015068,2]
[401148022,1767977441162,-476.58,0.00015278,2]
[401148024,1767977441172,-438.45159386,0.00015298,2]
[401148026,1767977441182,-1200.0,0.00015316,2]
[401148028,1767977441192,-156.51124134,0.00015337,2]
[401148030,1767977441201,-2000.0,0.00015342,2]
[401148032,1767977441211,-2000.0,0.00015342,2]
[401148034,1767977441220,-2000.0,0.00015342,2]
[401148036,1767977441230,-500.0,0.00015464,2]
[401148038,1767977441239,-2500.0,0.00015464,2]
[401148040,1767977441249,-2500.0,0.00015464,2]
[401148042,1767977441258,-2500.0,0.00015464,2]
[401148045,1767977441268,-864.0,0.00015778,2]
[401148047,1767977441278,-300.0,0.00015864,2]
[401148049,1767977441288,-2500.0,0.0001589,2]
[401148050,1767977441297,-916.19013549,0.0001589,2]
[401148052,1767977441307,-1000.0,0.00016,2]
[401148054,1767977441316,-3000.0,0.00016012,2]
[401148057,1767977441326,-3000.0,0.00016012,2]
[401148059,1767977441335,-1223.47237517,0.00016012,2]
[401148061,1767977441345,-472.2,0.00016438,2]
[401148079,1767977441354,-3000.0,0.00016438,2]
[401148081,1767977441518,-2540.0800825,0.00016541,2]
[401148083,1767977441528,-3500.0,0.0001656,2]
[401148086,1767977441538,-3000.0,0.0001656,2]
[401148088,1767977441548,-328.0,0.00016891,2]
[401148090,1767977441557,-151.0,0.000169,2]
[401148092,1767977441566,-3506.82414448,0.00016932,2]
[401148094,1767977441575,-2540.0800825,0.00016935,2]
[401148096,1767977441584,-37185.9837887,0.00016984,2]
[401148098,1767977441594,-555.57255906,0.00016986,2]
[401148099,1767977441603,-382.0,0.00017032,2]
[401148101,1767977441612,-545.00690479,0.00017108,2]
[401148103,1767977441621,-2540.0800825,0.00017162,2]
[401148105,1767977441632,-472.2,0.00017198,2]
[401148107,1767977441641,-478.75725327,0.00017205,2]
[401148109,1767977441650,-151.0,0.00017205,2]
[401148111,1767977441659,-30000.0,0.00017205,2]
[401148113,1767977441668,-322.6107,0.00017205,2]
[401148115,1767977441676,-2312.83697232,0.00017205,2]
[401148117,1767977441686,-489.69918275,0.00017298,2]
[401148119,1767977441694,-371.92,0.000173,2]
[401148121,1767977441704,-297.53,0.000173,16]
[401148123,1767977441713,-371.92,0.000173,14]
[401148125,1767977441722,-455.38,0.000173,2]
[401148127,1767977441732,-1000.0,0.00017356,2]
[401148129,1767977441741,-5000.0,0.00017412,2]
[401148131,1767977441750,-180.02880461,0.00017474,2]
[401148133,1767977441759,-2540.0800825,0.00017475,2]
[401148135,1767977441772,-151.0,0.000175,2]
[401148137,1767977441781,-2146.0,0.00017657,2]
[401148139,1767977441791,-628.0,0.00017657,2]
[401148141,1767977441800,-1366.0,0.00017657,2]
[401148143,1767977441811,-1000.0,0.00017661,7]
[401148145,1767977441820,-2540.0800825,0.00017705,2]
[401148147,1767977441830,-496.47127164,0.00017753,2]
[401148149,1767977441841,-31110.0,0.00017753,2]
[401148151,1767977441850,-334.5472959,0.00017753,2]
[401148153,1767977441860,-2398.4119403,0.00017753,2]
[401148155,1767977441870,-2540.0800825,0.00017822,2]
[401148157,1767977441882,-472.2,0.00017958,2]
[401148159,1767977441891,-151.0,0.00018,2]
[401148161,1767977441900,-2540.0800825,0.00018145,2]
[401148163,1767977441909,-3506.82414444,0.00018174,2]
[401148165,1767977441919,-212.9974071,0.00018293,2]
[401148167,1767977441929,-514.84070869,0.00018301,2]
[401148170,1767977441939,-17069.44112955,0.00018301,2]
[401148171,1767977441949,-288.9877782,0.00018301,2]
[401148173,1767977441959,-2487.15318209,0.00018301,2]
[401148175,1767977441968,-360.217755,0.00018493,2]
[401148177,1767977441977,-600.0,0.00018533,2]
[401148179,1767977441987,-2540.0800825,0.00018552,2]
[401148181,1767977441997,-151.0,0.000186,2]
[401148183,1767977442006,-151.0,0.000186,2]
[401148185,1767977442015,-524.847,0.00018604,2]
[401148187,1767977442024,-2605.47978138,0.00018696,7]
[401148189,1767977442033,-472.2,0.00018719,2]
[401148191,1767977442041,-600.0,0.00018726,2]
[401148193,1767977442050,-1000.0,0.00018757,7]
[401148195,1767977442060,-7487.2250973,0.000188,2]
[401148198,1767977442070,-2540.0800825,0.00018832,2]
[401148200,1767977442079,-533.88981491,0.00018849,2]
[401148202,1767977442088,-2579.17784983,0.00018849,2]
[401148204,1767977442098,-5000.0,0.00018863,2]
[401148206,1767977442107,-500.0,0.00018878,2]
[401148208,1767977442116,-500.0,0.00018878,2]
[401148210,1767977442125,-500.0,0.00018878,2]
[401148212,1767977442137,-500.0,0.00018878,2]
[401148214,1767977442146,-500.0,0.00018878,2]
[401148216,1767977442155,-500.0,0.00018878,2]
[401148218,1767977442164,-500.0,0.00018878,2]
[401148220,1767977442173,-153.0232152,0.00018878,2]
[401148221,1767977442182,-500.0,0.00018878,2]
[401148222,1767977442191,-259.14783661,0.00018878,2]
[401148223,1767977442200,-151.18748547,0.00018878,2]
[401148224,1767977442209,-6143.0,0.00018878,2]
[401148225,1767977442218,-151.52117963,0.00018878,2]
[401148226,1767977442227,-500.0,0.00018878,2]
[401148227,1767977442235,-151.0,0.00018878,2]
[401148228,1767977442244,-303.10001603,0.000189,2]
[401148229,1767977442253,-600.0,0.00018919,2]
[401148230,1767977442262,-10119.5807812,0.00018919,2]
[401148231,1767977442271,-1564.1689902,0.00018953,2]
[401148232,1767977442280,-153.6641002,0.00018953,2]
[401148233,1767977442290,-24435.1543903,0.00018953,2]
[401148234,1767977442299,-1107.8261972,0.0001897,2]
[401148235,1767977442308,-800.0,0.00018977,2]
[401148236,1767977442317,-800.0,0.00018982,2]
[401148237,1767977442326,-500.0,0.00019015,2]
[401148238,1767977442335,-500.0,0.00019015,2]
[401148239,1767977442344,-600.61037759,0.00019015,2]
[401148240,1767977442354,-500.0,0.00019015,2]
[401148241,1767977442364,-500.0,0.00019015,2]
[401148242,1767977442372,-633.41958824,0.00019015,2]
[401148243,1767977442383,-500.0,0.00019015,2]
[401148244,1767977442393,-500.0,0.00019015,2]
[401148245,1767977442402,-6143.0,0.00019015,2]
[401148246,1767977442411,-500.0,0.00019015,2]
[401148247,1767977442421,-800.0,0.00019015,2]
[401148248,1767977442430,-800.0,0.00019018,2]
[401148249,1767977442439,-800.0,0.0001904,2]
[401148250,1767977442448,-800.0,0.00019042,2]
[401148251,1767977442457,-800.0,0.00019046,2]
[401148252,1767977442466,-800.0,0.00019058,2]
[401148253,1767977442475,-800.0,0.00019061,2]
[401148254,1767977442484,-800.0,0.00019069,2]
[401148256,1767977442493,-800.0,0.00019086,2]
[401148257,1767977442502,-303.10001603,0.00019089,2]
[401148259,1767977442511,-1000.0,0.00019092,2]
[401148261,1767977442521,-244.0,0.00019092,2]
[401148263,1767977442530,-777.0,0.000191,2]
[401148265,1767977442540,-800.0,0.00019101,2]
[401148267,1767977442550,-800.0,0.00019109,2]
[401148269,1767977442559,-800.0,0.0001911,2]
[401148271,1767977442569,-2949.0,0.0001911,2]
[401148273,1767977442578,-600.0,0.00019112,2]
[401148275,1767977442588,-800.0,0.00019127,2]
[401148277,1767977442598,-800.0,0.00019133,2]
[401148279,1767977442608,-800.0,0.00019134,2]
[401148282,1767977442618,-2540.0800831,0.00019144,2]
[401148284,1767977442627,-800.0,0.00019149,2]
[401148285,1767977442637,-151.12568822,0.00019152,2]
[401148287,1767977442646,-200.0,0.00019152,2]
[401148289,1767977442656,-629.09707327,0.00019152,2]
[401148291,1767977442665,-564.05569209,0.00019152,2]
[401148293,1767977442675,-500.0,0.00019152,2]
[401148295,1767977442685,-425.58637142,0.00019152,2]
[401148297,1767977442694,-200.0,0.00019152,2]
[401148299,1767977442704,-168.44944452,0.00019152,2]
[401148301,1767977442712,-500.0,0.00019152,2]
[401148303,1767977442722,-527.35465744,0.00019152,2]
[401148305,1767977442732,-6143.0,0.00019152,2]
[401148307,1767977442741,-500.0,0.00019152,2]
[401148309,1767977442751,-800.0,0.00019156,2]
[401148311,1767977442761,-800.0,0.00019157,2]
[401148314,1767977442775,-800.0,0.00019165,2]
[401148316,1767977442784,-800.0,0.00019187,2]
[401148318,1767977442794,-241.2568376,0.00019196,2]
[401148320,1767977442803,-167.68,0.000192,2]
[401148322,1767977442813,-6055.82665541,0.000192,2]
[401148324,1767977442822,-151.0,0.000192,2]
[401148326,1767977442833,-246.13629979,0.000192,2]
[401148328,1767977442843,-570.90942519,0.000192,2]
[401148330,1767977442852,-151.0,0.000192,2]
[401148332,1767977442862,-800.0,0.00019223,2]
[401148334,1767977442871,-800.0,0.00019236,2]
[401148336,1767977442880,-800.0,0.00019255,2]
[401148338,1767977442889,-12813.4552114,0.00019262,2]
[401148340,1767977442900,-303.10001603,0.00019278,2]
[401148342,1767977442913,-500.0,0.00019289,2]
[401148345,1767977442926,-500.0,0.00019289,2]
[401148347,1767977442937,-151.71242224,0.00019289,2]
[401148349,1767977442950,-6143.0,0.00019289,2]
[401148352,1767977442962,-500.0,0.00019289,2]
[401148354,1767977442973,-540.94677164,0.00019298,2]
[401148356,1767977442984,-161.99,0.000193,2]
[401148359,1767977442997,-164.12,0.000193,2]
[401148363,1767977443009,-1390.71762886,0.000193,2]
[401148365,1767977443020,-1390.71762886,0.000193,2]
[401148367,1767977443031,-386591.61825745,0.00019305,2]
[401148386,1767977443208,-2818.93161548,0.00019305,2]
[401148399,1767977443526,-520.69701721,0.00019305,2]
[401148406,1767977444731,-1823.20366903,0.00019305,2]
[401148439,1767977491407,-235679.00707299,0.00019305,2]
[401148440,1767977491416,-600.0,0.00019305,2]
[401148441,1767977491425,-589.0,0.0001934,2]
[401148442,1767977491434,-2281.35406305,0.00019379,2]
[401148443,1767977491444,-553.64373807,0.00019397,2]
[401148444,1767977491453,-2674.60743027,0.00019397,2]
[401148445,1767977491462,-403.0,0.00019397,2]
[401148446,1767977491471,-1610.24,0.000194,2]
[401148447,1767977491480,-3506.82414444,0.00019416,2]
[401148448,1767977491488,-500.0,0.00019426,2]
[401148449,1767977491498,-279.25171681,0.00019426,2]
[401148450,1767977491507,-210.56827625,0.00019426,2]
[401148451,1767977491516,-274.74001223,0.00019426,2]
[401148452,1767977491524,-154.82317524,0.00019426,2]
[401148453,1767977491534,-151.25281158,0.00019426,2]
[401148454,1767977491542,-6143.0,0.00019426,2]
[401148455,1767977491551,-500.0,0.00019426,2]
[401148456,1767977491560,-161.30460818,0.00019426,2]
[401148457,1767977491569,-303.100016,0.00019467,2]
[401148458,1767977491578,-472.2,0.00019479,2]
[401148459,1767977491587,-600.0,0.00019498,2]
[401148460,1767977491596,-589.0,0.00019503,2]
[401148461,1767977491604,-3927.12796227,0.00019552,2]
[401148462,1767977491613,-403.0,0.00019552,2]
[401148463,1767977491621,-151.38401694,0.00019563,2]
[401148464,1767977491630,-250.0,0.00019563,2]
[401148465,1767977491639,-277.92667681,0.00019563,2]
[401148466,1767977491648,-156.8595936,0.00019563,2]
[401148467,1767977491657,-6143.0,0.00019563,2]
[401148468,1767977491666,-250.48599137,0.00019563,2]
[401148469,1767977491675,-151.0,0.000196,2]
[401148470,1767977491687,-589.0,0.0001961,2]
[401148471,1767977491696,-168.0,0.00019671,2]
[401148472,1767977491705,-589.0,0.00019681,2]
[401148473,1767977491715,-589.0,0.00019686,2]
[401148474,1767977491724,-600.0,0.00019691,2]
[401148475,1767977491733,-173.22312168,0.00019699,3]
[401148476,1767977491742,-6143.0,0.000197,2]
[401148477,1767977491752,-151.0,0.000197,2]
[401148478,1767977491761,-151.0,0.000197,2]
[401148479,1767977491770,-589.0,0.00019704,2]
[401148480,1767977491779,-589.0,0.00019722,2]
[401148481,1767977491792,-242.53886698,0.00019726,2]
[401148482,1767977491801,-589.0,0.00019742,2]
[401148483,1767977491810,-589.0,0.00019762,2]
[401148484,1767977491820,-151.0,0.000198,2]
[401148485,1767977491830,-1862.911251,0.000198,5]
[401148486,1767977491839,-1000.0,0.0001982,5]
[401148487,1767977491848,-6143.0,0.00019837,2]
[401148488,1767977491858,-151.0,0.00019837,2]
[401148489,1767977491867,-151.0,0.00019837,2]
[401148490,1767977491876,-216.173274,0.00019837,2]
[401148491,1767977491885,-1000.0,0.0001984,5]
[401148492,1767977491894,-1000.0,0.00019853,7]
[401148493,1767977491903,-1000.0,0.0001986,5]
[401148494,1767977491913,-10000.0,0.00019879,2]
[401148495,1767977491921,-1000.0,0.0001988,5]
[401148496,1767977491930,-600.0,0.00019884,2]
[401148497,1767977491941,-1000.0,0.000199,5]
[401148498,1767977491950,-1000.0,0.0001992,5]
[401148499,1767977491960,-1041.66666667,0.00019934,2]
[401148500,1767977491969,-589.0,0.00019936,2]
[401148501,1767977491978,-1000.0,0.0001994,5]
[401148502,1767977491988,-574.12855637,0.00019945,2]
[401148503,1767977491997,-2773.56790519,0.00019945,2]
[401148504,1767977492010,-1000.0,0.0001996,5]
[401148505,1767977492019,-6143.0,0.00019974,2]
[401148506,1767977492029,-589.0,0.00019979,2]
[401148507,1767977492038,-1000.0,0.0001998,5]
[401148508,1767977492047,-5000.0,0.00019984,2]
[401148509,1767977492057,-200.0,0.00019999,2]
[401148510,1767977492067,-109566.0,0.0002,7]
[401148511,1767977492076,-27346.37499286,0.0002,2]
[401148512,1767977492086,-82223.07254731,0.0002,7]
[401148513,1767977492095,-1671.0,0.0002,10]
[401148514,1767977492105,-205.26965857,0.0002,2]
[401148515,1767977492115,-642.43087255,0.0002,2]
[401148516,1767977492124,-14691.71011377,0.0002,2]
[401148517,1767977492133,-371.3702881,0.0002,2]
[401148518,1767977492143,-656.91092687,0.0002,2]
[401148519,1767977492152,-26101.49674576,0.0002,2]
[401148520,1767977492161,-23000.0,0.0002,2]
[401148521,1767977492171,-202.59651758,0.0002,2]
[401148522,1767977492181,-503.94367251,0.0002,2]
[401148523,1767977492192,-159.90889711,0.0002,2]
[401148524,1767977492202,-6745000.0,0.0002,3]
[401148525,1767977492212,-9636.5472526,0.0002,3]
[401148526,1767977492221,-350.0,0.0002,2]
[401148527,1767977492231,-2435.87748646,0.0002,2]
[401148528,1767977492240,-20522.02,0.0002,2]
[401148529,1767977492250,-181.25348447,0.0002,2]
[401148530,1767977492260,-1000.0,0.0002,5]
[401148531,1767977492270,-151.0,0.0002,2]
[401148532,1767977492279,-177.552931,0.0002,2]
[401148533,1767977492288,-177.552931,0.0002,2]
[401148534,1767977492297,-250.0,0.0002,10]
[401148535,1767977492439,-177.552931,0.0002,2]
[401148536,1767977492449,-597.569554,0.0002,2]
[401148537,1767977492459,-177.552931,0.0002,2]
[401148538,1767977492469,-597.569554,0.0002,2]
[401148539,1767977492478,-597.569554,0.0002,2]
[401148540,1767977492487,-597.569554,0.0002,2]
[401148541,1767977492496,-210.2830519,0.0002,2]
[401148542,1767977492508,-151.0,0.0002,2]
[401148543,1767977492518,-151.0,0.0002,2]
[401148544,1767977492527,-151.0,0.0002,2]
[401148545,1767977492536,-340.56,0.0002004,2]
[401148546,1767977492545,-589.0,0.0002006,2]
[401148547,1767977492555,-600.0,0.00020077,2]
[401148548,1767977492564,-589.0,0.00020078,2]
[401148549,1767977492574,-403.0,0.00020084,2]
[401148550,1767977492584,-589.0,0.00020092,2]
[401148551,1767977492594,-250.0,0.000201,10]
[401148552,1767977492603,-6143.0,0.00020111,2]
[401148553,1767977492612,-589.0,0.00020123,2]
[401148554,1767977492621,-473.33519542,0.0002013,2]
[401148555,1767977492630,-168.0,0.00020135,2]
[401148556,1767977492640,-589.0,0.0002018,2]